[Event "Saint Louis Blitz 2020"]
[Site "Saint Louis"]
[Date "2020.09.18"]
[Round "7"]
[White "Firouzja, Alireza"]
[Black "Carlsen, Magnus"]
[Result "0-1"]
[ECO "C65"]
[WhiteElo "2728"]
[BlackElo "2863"]
[Annotator "ChessBase"]
[PlyCount "140"]
[EventDate "2020.09.18"]
[EventType "blitz"]
[EventCountry "USA"]
[SourceTitle "playchess.com"]
[Source "ChessBase"]
[SourceQuality "1"]
[TimeControl "300+3"]

1. e4 {[%emt 0:00:03]} e5 {[%emt 0:00:03]} 2. Nf3 {[%emt 0:00:01]} Nc6 {
[%emt 0:00:01]} 3. Bb5 {[%emt 0:00:01]} Nf6 {[%emt 0:00:03]} 4. d3 {[%emt 0:00:
02]} Bc5 {[%emt 0:00:02]} 5. Bxc6 {[%emt 0:00:02]} dxc6 {[%emt 0:00:00]} 6. O-O
{[%emt 0:00:01]} Bg4 {[%emt 0:00:02]} 7. h3 {[%emt 0:00:05]} Bh5 {[%emt 0:00:
01]} 8. Nbd2 {[%emt 0:00:00]} Nd7 {[%emt 0:00:07]} 9. Nc4 {[%emt 0:00:04]} f6 {
[%emt 0:00:04]} 10. Rb1 {[%emt 0:00:10]} a5 {[%emt 0:00:07]} 11. Bd2 {[%emt 0:
00:08]} b6 {[%emt 0:00:08]} 12. Be3 {[%emt 0:00:45]} Be7 {[%emt 0:00:02]} 13.
b3 {[%emt 0:00:10]} Nc5 {[%emt 0:00:07]} 14. a4 {[%emt 0:00:15]} Ne6 {[%emt 0:
00:02]} 15. Qe2 {[%emt 0:00:10]} c5 {[%emt 0:00:05]} 16. c3 {[%emt 0:00:03]}
Qd7 {[%emt 0:00:29]} 17. Rfd1 {[%emt 0:00:09]} Rd8 {[%emt 0:00:04]} 18. Rb2 {
[%emt 0:00:15]} Qc8 {[%emt 0:00:09]} 19. Rbd2 {[%emt 0:00:08]} O-O {[%emt 0:00:
02]} 20. g4 {[%emt 0:00:08]} Bf7 {[%emt 0:00:03]} 21. Nh4 {[%emt 0:00:05]} g6 {
[%emt 0:00:01]} 22. Ng2 {[%emt 0:00:08]} g5 {[%emt 0:00:18]} 23. f3 {[%emt 0:
00:14]} h5 {[%emt 0:00:02]} 24. Bf2 {[%emt 0:00:08]} Kh7 {[%emt 0:00:56]} 25.
Nce3 {[%emt 0:00:08]} Rh8 {[%emt 0:00:21]} 26. Nf5 {[%emt 0:00:05]} Bf8 {
[%emt 0:00:10]} 27. d4 {[%emt 0:00:40]} cxd4 {[%emt 0:00:11]} 28. cxd4 {
[%emt 0:00:01]} hxg4 {[%emt 0:00:12]} 29. hxg4 {[%emt 0:00:06]} Bb4 {[%emt 0:
00:26]} 30. d5 {[%emt 0:00:36]} Ng7 {[%emt 0:01:11]} 31. Rc2 {[%emt 0:00:27]}
Nxf5 {[%emt 0:00:02]} 32. gxf5 {[%emt 0:00:00]} Qd7 {[%emt 0:00:05]} 33. Ne3 {
[%emt 0:00:10]} Kg7 {[%emt 0:00:02]} 34. Rdc1 {[%emt 0:00:16]} Rc8 {[%emt 0:00:
18]} 35. Rc6 {[%emt 0:00:06]} Rh3 {[%emt 0:00:16]} 36. Kg2 {[%emt 0:00:08]}
Rch8 {[%emt 0:00:05]} 37. Ng4 {[%emt 0:00:26]} Bd6 {[%emt 0:00:01]} 38. Bg3 {
[%emt 0:00:03]} R3h7 {[%emt 0:00:05]} 39. Qb2 {[%emt 0:00:15]} Qe7 {[%emt 0:00:
14]} 40. R1c4 {[%emt 0:00:09]} Bh5 {[%emt 0:00:02]} 41. Qc3 {[%emt 0:00:03]}
Bxg4 {[%emt 0:00:03]} 42. Rxc7 {[%emt 0:00:01]} Bh3+ {[%emt 0:00:11]} 43. Kf2 {
[%emt 0:00:01]} Bxc7 {[%emt 0:00:01]} 44. Rxc7 {[%emt 0:00:01]} Kh6 {[%emt 0:
00:01]} 45. Rxe7 {[%emt 0:00:02]} Rxe7 {[%emt 0:00:00]} 46. d6 {[%emt 0:00:06]}
Rd7 {[%emt 0:00:02]} 47. Bxe5 {[%emt 0:00:01]} fxe5 {[%emt 0:00:04]} 48. Qxe5 {
[%emt 0:00:00]} Kh7 {[%emt 0:00:06]} 49. Qf6 {[%emt 0:00:10]} Rg8 {[%emt 0:00:
05]} 50. e5 {[%emt 0:00:03]} Rgg7 {[%emt 0:00:01]} 51. Kg3 {[%emt 0:00:04]}
Rdf7 {[%emt 0:00:02]} 52. Qd8 {[%emt 0:00:09]} Bxf5 {[%emt 0:00:02]} 53. Qe8 {
[%emt 0:00:00]} Bd7 {[%emt 0:00:05]} 54. Qa8 {[%emt 0:00:01]} Rg6 {[%emt 0:00:
07]} 55. Qb7 {[%emt 0:00:02]} Re6 {[%emt 0:00:07]} 56. Qe4+ {[%emt 0:00:06]}
Kg7 {[%emt 0:00:00]} 57. Qe3 {[%emt 0:00:02]} Rf5 {[%emt 0:00:02]} 58. Qxb6 {
[%emt 0:00:02]} Rexe5 {[%emt 0:00:01]} 59. Qa7 {[%emt 0:00:01]} Rf7 {[%emt 0:
00:03]} 60. Qd4 {[%emt 0:00:02]} Kf6 {[%emt 0:00:00]} 61. b4 {[%emt 0:00:01]}
axb4 {[%emt 0:00:02]} 62. Qxb4 {[%emt 0:00:00]} Kg6 {[%emt 0:00:05]} 63. a5 {
[%emt 0:00:09]} Re3 {[%emt 0:00:09]} 64. a6 {[%emt 0:00:03]} Rexf3+ {[%emt 0:
00:02]} 65. Kg2 {[%emt 0:00:02]} Rf2+ {[%emt 0:00:00]} 66. Kg1 {[%emt 0:00:01]}
Rf1+ {[%emt 0:00:01]} 67. Kg2 {[%emt 0:00:00]} Bc6+ {[%emt 0:00:01]} 68. Kg3 {
[%emt 0:00:02]} R7f3+ {[%emt 0:00:01]} 69. Kh2 {[%emt 0:00:01]} R3f2+ {[%emt 0:
00:01]} 70. Kg3 {[%emt 0:00:01]} Rg2+ {[%emt 0:00:01]} 0-1

[Event "Saint Louis Blitz 2020"]
[Site "Saint Louis"]
[Date "2020.09.18"]
[Round "8"]
[White "Carlsen, Magnus"]
[Black "Dominguez Perez, Leinier"]
[Result "1-0"]
[ECO "D02"]
[WhiteElo "2863"]
[BlackElo "2758"]
[Annotator "ChessBase"]
[PlyCount "157"]
[EventDate "2020.09.18"]
[EventType "blitz"]
[EventCountry "USA"]
[SourceTitle "playchess.com"]
[Source "ChessBase"]
[SourceQuality "1"]
[TimeControl "300+3"]

1. d4 {[%emt 0:00:03]} Nf6 {[%emt 0:00:03]} 2. Nf3 {[%emt 0:00:01]} d5 {
[%emt 0:00:01]} 3. Bf4 {[%emt 0:00:01]} e6 {[%emt 0:00:03]} 4. Nbd2 {[%emt 0:
00:03]} Bd6 {[%emt 0:00:02]} 5. Bg5 {[%emt 0:00:00]} h6 {[%emt 0:00:01]} 6.
Bxf6 {[%emt 0:00:02]} Qxf6 {[%emt 0:00:01]} 7. e4 {[%emt 0:00:01]} Qd8 {
[%emt 0:00:01]} 8. e5 {[%emt 0:00:09]} Be7 {[%emt 0:00:02]} 9. c3 {[%emt 0:00:
00]} c5 {[%emt 0:00:25]} 10. Bd3 {[%emt 0:00:08]} cxd4 {[%emt 0:00:13]} 11.
Nxd4 {[%emt 0:00:23]} Nc6 {[%emt 0:00:16]} 12. N2f3 {[%emt 0:00:01]} Qb6 {
[%emt 0:00:33]} 13. Qe2 {[%emt 0:00:05]} Bd7 {[%emt 0:00:15]} 14. O-O {[%emt 0:
01:03]} g5 {[%emt 0:00:17]} 15. Nxc6 {[%emt 0:00:24]} bxc6 {[%emt 0:00:06]} 16.
b3 {[%emt 0:00:08]} g4 {[%emt 0:00:09]} 17. Nd2 {[%emt 0:00:05]} h5 {[%emt 0:
00:03]} 18. Kh1 {[%emt 0:00:01]} f5 {[%emt 0:00:39]} 19. exf6 {[%emt 0:00:28]}
Bxf6 {[%emt 0:00:01]} 20. Rac1 {[%emt 0:00:03]} Qc7 {[%emt 0:00:16]} 21. f4 {
[%emt 0:00:07]} O-O {[%emt 0:00:53]} 22. Bg6 {[%emt 0:00:19]} Be8 {[%emt 0:00:
51]} 23. Qxe6+ {[%emt 0:00:02]} Kg7 {[%emt 0:00:07]} 24. Bb1 {[%emt 0:00:17]}
Bd7 {[%emt 0:00:09]} 25. Qe3 {[%emt 0:00:04]} Rae8 {[%emt 0:00:03]} 26. Qd3 {
[%emt 0:00:03]} Rf7 {[%emt 0:00:17]} 27. Qg6+ {[%emt 0:00:07]} Kf8 {[%emt 0:00:
02]} 28. Qxh5 {[%emt 0:00:05]} Re2 {[%emt 0:00:12]} 29. Bg6 {[%emt 0:00:06]}
Rg7 {[%emt 0:00:16]} 30. Rce1 {[%emt 0:00:20]} Re6 {[%emt 0:00:02]} 31. Qh8+ {
[%emt 0:00:39]} Rg8 {[%emt 0:00:05]} 32. Qh6+ {[%emt 0:00:10]} Bg7 {[%emt 0:00:
01]} 33. Qh5 {[%emt 0:00:21]} Rh8 {[%emt 0:00:03]} 34. Qf5+ {[%emt 0:00:06]}
Rf6 {[%emt 0:00:02]} 35. Qg5 {[%emt 0:00:10]} Qd6 {[%emt 0:00:03]} 36. Bd3 {
[%emt 0:00:09]} Bh6 {[%emt 0:00:05]} 37. Qe5 {[%emt 0:00:15]} Qxe5 {[%emt 0:00:
01]} 38. fxe5 {[%emt 0:00:01]} Rxf1+ {[%emt 0:00:00]} 39. Nxf1 {[%emt 0:00:01]}
Be6 {[%emt 0:00:09]} 40. Ne3 {[%emt 0:00:12]} Ke7 {[%emt 0:00:05]} 41. Nf5+ {
[%emt 0:00:06]} Bxf5 {[%emt 0:00:01]} 42. Bxf5 {[%emt 0:00:00]} g3 {[%emt 0:00:
07]} 43. Re2 {[%emt 0:00:14]} Bf4 {[%emt 0:00:01]} 44. h3 {[%emt 0:00:03]} Rh5
{[%emt 0:00:02]} 45. Bg4 {[%emt 0:00:02]} Rxe5 {[%emt 0:00:01]} 46. c4 {
[%emt 0:00:00]} dxc4 {[%emt 0:00:03]} 47. bxc4 {[%emt 0:00:03]} c5 {[%emt 0:00:
02]} 48. Rxe5+ {[%emt 0:00:01]} Bxe5 {[%emt 0:00:01]} 49. Kg1 {[%emt 0:00:00]}
Kf6 {[%emt 0:00:03]} 50. Kf1 {[%emt 0:00:02]} Kg5 {[%emt 0:00:03]} 51. Ke2 {
[%emt 0:00:00]} Kf4 {[%emt 0:00:01]} 52. Bf3 {[%emt 0:00:02]} Bf6 {[%emt 0:00:
05]} 53. Kd3 {[%emt 0:00:02]} Ke5 {[%emt 0:00:02]} 54. Kc3 {[%emt 0:00:03]}
Kd6+ {[%emt 0:00:03]} 55. Kb3 {[%emt 0:00:01]} Kc7 {[%emt 0:00:01]} 56. Bd5 {
[%emt 0:00:02]} Bg5 {[%emt 0:00:08]} 57. Kc3 {[%emt 0:00:03]} Kd6 {[%emt 0:00:
01]} 58. Ba8 {[%emt 0:00:03]} Bf6+ {[%emt 0:00:08]} 59. Kd3 {[%emt 0:00:02]}
Ke5 {[%emt 0:00:01]} 60. Ke3 {[%emt 0:00:01]} Kf5 {[%emt 0:00:04]} 61. Kf3 {
[%emt 0:00:01]} Be5 {[%emt 0:00:05]} 62. h4 {[%emt 0:00:02]} Bd6 {[%emt 0:00:
03]} 63. Be4+ {[%emt 0:00:02]} Kf6 {[%emt 0:00:02]} 64. Kg4 {[%emt 0:00:01]}
Be5 {[%emt 0:00:02]} 65. h5 {[%emt 0:00:02]} Bd6 {[%emt 0:00:03]} 66. h6 {
[%emt 0:00:00]} Bc7 {[%emt 0:00:03]} 67. h7 {[%emt 0:00:07]} Kg7 {[%emt 0:00:
01]} 68. Kf3 {[%emt 0:00:02]} a5 {[%emt 0:00:03]} 69. Bc2 {[%emt 0:00:03]} Be5
{[%emt 0:00:04]} 70. Ke4 {[%emt 0:00:01]} Bc3 {[%emt 0:00:02]} 71. Kf4 {
[%emt 0:00:00]} Be1 {[%emt 0:00:02]} 72. Ke5 {[%emt 0:00:01]} Kh8 {[%emt 0:00:
06]} 73. Kd5 {[%emt 0:00:01]} Bb4 {[%emt 0:00:01]} 74. Kc6 {[%emt 0:00:00]} Kg7
{[%emt 0:00:02]} 75. Kb5 {[%emt 0:00:00]} Kh8 {[%emt 0:00:06]} 76. Ka4 {
[%emt 0:00:00]} Kg7 {[%emt 0:00:02]} 77. a3 {[%emt 0:00:03]} Bd2 {[%emt 0:00:
05]} 78. Kb5 {[%emt 0:00:01]} Bc1 {[%emt 0:00:04]} 79. a4 {[%emt 0:00:01]} 1-0

[Event "Saint Louis Blitz 2020"]
[Site "Saint Louis"]
[Date "2020.09.18"]
[Round "8"]
[White "Aronian, Levon"]
[Black "Nepomniachtchi, Ian"]
[Result "1/2-1/2"]
[ECO "D84"]
[WhiteElo "2773"]
[BlackElo "2784"]
[Annotator "RC"]
[PlyCount "46"]
[EventDate "2020.09.18"]
[EventType "blitz"]
[EventCountry "USA"]
[SourceTitle "playchess.com"]
[Source "ChessBase"]
[SourceQuality "1"]
[TimeControl "300+3"]

1. d4 {[%emt 0:00:03]} Nf6 {[%emt 0:00:03]} 2. c4 {[%emt 0:00:01]} g6 {[%emt 0:
00:01]} 3. Nc3 {[%emt 0:00:01]} d5 {[%emt 0:00:01]} 4. Bf4 {[%emt 0:00:02]} Bg7
{[%emt 0:00:01]} 5. e3 {[%emt 0:00:01]} O-O {[%emt 0:00:01]} 6. cxd5 {[%emt 0:
00:01]} Nxd5 {[%emt 0:00:01]} 7. Nxd5 {[%emt 0:00:00]} Qxd5 {[%emt 0:00:00]} 8.
Bxc7 {[%emt 0:00:01]} Na6 {[%emt 0:00:02]} 9. Bxa6 {[%emt 0:00:02]} Qxg2 {
[%emt 0:00:07]} 10. Qf3 {[%emt 0:00:01]} Qxf3 {[%emt 0:00:00]} 11. Nxf3 {
[%emt 0:00:01]} bxa6 {[%emt 0:00:00]} 12. O-O {[%emt 0:00:01]} f6 {[%emt 0:00:
13]} 13. Nd2 {[%emt 0:00:14]} Bb7 {[%emt 0:00:03]} 14. Rfc1 {[%emt 0:00:08]}
Rac8 {[%emt 0:00:04]} 15. Ba5 {[%emt 0:00:26]} e5 {[%emt 0:00:03]} 16. Bb4 {
[%emt 0:00:09]} Rfd8 {[%emt 0:00:06]} 17. Be7 {[%emt 0:00:25]} Rxc1+ {[%emt 0:
00:20]} 18. Rxc1 {[%emt 0:00:02]} Rd7 {[%emt 0:00:00]} 19. Bc5 {[%emt 0:00:08]}
f5 {[%emt 0:00:01]} 20. Nb3 {[%emt 0:00:15]} Bd5 {[%emt 0:00:03]} 21. dxe5 {
[%emt 0:00:15]} Bxb3 {[%emt 0:00:03]} 22. axb3 {[%emt 0:00:02]} Bxe5 {[%emt 0:
00:01]} 23. Ra1 {[%emt 0:00:03]} Rb7 {[%emt 0:00:14]} 1/2-1/2

[Event "Saint Louis Blitz 2020"]
[Site "Saint Louis"]
[Date "2020.09.18"]
[Round "8"]
[White "Nakamura, Hikaru"]
[Black "So, Wesley"]
[Result "1/2-1/2"]
[ECO "C65"]
[WhiteElo "2736"]
[BlackElo "2770"]
[Annotator "ChessBase"]
[PlyCount "56"]
[EventDate "2020.09.18"]
[EventType "blitz"]
[EventCountry "USA"]
[SourceTitle "playchess.com"]
[Source "ChessBase"]
[SourceQuality "1"]
[TimeControl "300+3"]

1. e4 {[%emt 0:00:03]} e5 {[%emt 0:00:03]} 2. Nf3 {[%emt 0:00:01]} Nc6 {
[%emt 0:00:01]} 3. Bb5 {[%emt 0:00:02]} Nf6 {[%emt 0:00:02]} 4. d3 {[%emt 0:00:
00]} Bc5 {[%emt 0:00:01]} 5. Bxc6 {[%emt 0:00:01]} dxc6 {[%emt 0:00:00]} 6.
Nbd2 {[%emt 0:00:01]} Be6 {[%emt 0:00:01]} 7. O-O {[%emt 0:00:01]} Bd6 {
[%emt 0:00:01]} 8. d4 {[%emt 0:00:01]} Nd7 {[%emt 0:00:02]} 9. dxe5 {[%emt 0:
00:01]} Nxe5 {[%emt 0:00:00]} 10. Nxe5 {[%emt 0:00:00]} Bxe5 {[%emt 0:00:00]}
11. f4 {[%emt 0:00:01]} Bd4+ {[%emt 0:00:00]} 12. Kh1 {[%emt 0:00:00]} f5 {
[%emt 0:00:01]} 13. Qh5+ {[%emt 0:00:01]} g6 {[%emt 0:00:00]} 14. Qe2 {[%emt 0:
00:01]} O-O {[%emt 0:00:02]} 15. Nf3 {[%emt 0:00:04]} Bf6 {[%emt 0:00:00]} 16.
e5 {[%emt 0:00:01]} Be7 {[%emt 0:00:01]} 17. Be3 {[%emt 0:00:13]} c5 {[%emt 0:
00:17]} 18. c4 {[%emt 0:00:10]} Qe8 {[%emt 0:00:05]} 19. Bf2 {[%emt 0:00:04]}
Rd8 {[%emt 0:00:09]} 20. b3 {[%emt 0:00:03]} Qc6 {[%emt 0:00:14]} 21. Qe1 {
[%emt 0:00:24]} Qe4 {[%emt 0:00:17]} 22. Bh4 {[%emt 0:00:05]} Qxe1 {[%emt 0:00:
01]} 23. Rfxe1 {[%emt 0:00:03]} Bxh4 {[%emt 0:00:01]} 24. Nxh4 {[%emt 0:00:00]}
Rd4 {[%emt 0:00:06]} 25. g3 {[%emt 0:00:23]} Bd7 {[%emt 0:00:05]} 26. Kg1 {
[%emt 0:00:28]} Bc6 {[%emt 0:00:03]} 27. Kf2 {[%emt 0:00:11]} Rfd8 {[%emt 0:00:
16]} 28. Re2 {[%emt 0:00:10]} Kf7 {[%emt 0:00:12]} 1/2-1/2

[Event "Saint Louis Blitz 2020"]
[Site "Saint Louis"]
[Date "2020.09.18"]
[Round "8"]
[White "Harikrishna, Pentala"]
[Black "Grischuk, Alexander"]
[Result "0-1"]
[ECO "A49"]
[WhiteElo "2732"]
[BlackElo "2777"]
[Annotator "RC"]
[PlyCount "96"]
[EventDate "2020.09.18"]
[EventType "blitz"]
[EventCountry "USA"]
[SourceTitle "playchess.com"]
[Source "ChessBase"]
[SourceQuality "1"]
[TimeControl "300+3"]

1. d4 {[%emt 0:00:03]} Nf6 {[%emt 0:00:03]} 2. Nf3 {[%emt 0:00:02]} g6 {
[%emt 0:00:03]} 3. g3 {[%emt 0:00:03]} Bg7 {[%emt 0:00:02]} 4. Bg2 {[%emt 0:00:
00]} O-O {[%emt 0:00:01]} 5. O-O {[%emt 0:00:02]} d6 {[%emt 0:00:02]} 6. Re1 {
[%emt 0:00:01]} Nbd7 {[%emt 0:00:10]} 7. e4 {[%emt 0:00:02]} e5 {[%emt 0:00:01]
} 8. Nc3 {[%emt 0:00:03]} c6 {[%emt 0:00:06]} 9. a4 {[%emt 0:00:08]} Re8 {
[%emt 0:00:03]} 10. h3 {[%emt 0:00:21]} Qc7 {[%emt 0:00:08]} 11. a5 {[%emt 0:
00:05]} Rb8 {[%emt 0:00:03]} 12. Be3 {[%emt 0:00:25]} b5 {[%emt 0:00:04]} 13.
axb6 {[%emt 0:00:03]} axb6 {[%emt 0:00:00]} 14. dxe5 {[%emt 0:00:15]} dxe5 {
[%emt 0:00:18]} 15. Nd2 {[%emt 0:00:04]} b5 {[%emt 0:00:06]} 16. Nb3 {[%emt 0:
00:17]} Bb7 {[%emt 0:00:20]} 17. Qe2 {[%emt 0:00:56]} Ra8 {[%emt 0:00:13]} 18.
Red1 {[%emt 0:00:12]} Bf8 {[%emt 0:00:13]} 19. Qf3 {[%emt 0:00:11]} Kg7 {
[%emt 0:00:23]} 20. h4 {[%emt 0:00:02]} b4 {[%emt 0:00:33]} 21. Rxa8 {[%emt 0:
01:14]} Rxa8 {[%emt 0:00:00]} 22. Ne2 {[%emt 0:00:03]} c5 {[%emt 0:00:02]} 23.
Nd2 {[%emt 0:00:30]} c4 {[%emt 0:00:08]} 24. g4 {[%emt 0:00:06]} c3 {[%emt 0:
00:16]} 25. bxc3 {[%emt 0:00:02]} bxc3 {[%emt 0:00:00]} 26. Nxc3 {[%emt 0:00:
01]} h5 {[%emt 0:00:32]} 27. gxh5 {[%emt 0:00:10]} Nxh5 {[%emt 0:00:00]} 28.
Nf1 {[%emt 0:00:10]} Ndf6 {[%emt 0:00:11]} 29. Bg5 {[%emt 0:00:21]} Rc8 {
[%emt 0:00:32]} 30. Nd5 {[%emt 0:00:11]} Bxd5 {[%emt 0:00:04]} 31. exd5 {
[%emt 0:00:01]} e4 {[%emt 0:00:18]} 32. Qe2 {[%emt 0:00:04]} Bd6 {[%emt 0:00:
22]} 33. Ne3 {[%emt 0:00:07]} Bh2+ {[%emt 0:00:19]} 34. Kf1 {[%emt 0:00:04]}
Bf4 {[%emt 0:00:02]} 35. Bh3 {[%emt 0:00:11]} Rh8 {[%emt 0:00:09]} 36. Bg2 {
[%emt 0:00:03]} Qe5 {[%emt 0:00:07]} 37. Bxf6+ {[%emt 0:00:03]} Nxf6 {[%emt 0:
00:02]} 38. Ng4 {[%emt 0:00:01]} Nxg4 {[%emt 0:00:05]} 39. Qxg4 {[%emt 0:00:01]
} e3 {[%emt 0:00:18]} 40. d6 {[%emt 0:00:07]} Rxh4 {[%emt 0:00:07]} 41. Qe2 {
[%emt 0:00:06]} Bg5 {[%emt 0:00:19]} 42. Rd5 {[%emt 0:00:05]} Qa1+ {[%emt 0:00:
04]} 43. Qd1 {[%emt 0:00:04]} Qf6 {[%emt 0:00:04]} 44. f3 {[%emt 0:00:08]} Ra4
{[%emt 0:00:06]} 45. d7 {[%emt 0:00:03]} Ra1 {[%emt 0:00:07]} 46. d8=Q {
[%emt 0:00:02]} Qa6+ {[%emt 0:00:02]} 47. Ke1 {[%emt 0:00:02]} Rxd1+ {[%emt 0:
00:04]} 48. Rxd1 {[%emt 0:00:01]} Bxd8 {[%emt 0:00:01]} 0-1

[Event "Saint Louis Blitz 2020"]
[Site "Saint Louis"]
[Date "2020.09.18"]
[Round "8"]
[White "Xiong, Jeffery"]
[Black "Firouzja, Alireza"]
[Result "1-0"]
[ECO "A46"]
[WhiteElo "2709"]
[BlackElo "2728"]
[Annotator "ChessBase"]
[PlyCount "115"]
[EventDate "2020.09.18"]
[EventType "blitz"]
[EventCountry "USA"]
[SourceTitle "playchess.com"]
[Source "ChessBase"]
[SourceQuality "1"]
[TimeControl "300+3"]

1. d4 {[%emt 0:00:03]} Nf6 {[%emt 0:00:03]} 2. Nf3 {[%emt 0:00:02]} e6 {
[%emt 0:00:01]} 3. Bf4 {[%emt 0:00:06]} b6 {[%emt 0:00:07]} 4. e3 {[%emt 0:00:
02]} Bb7 {[%emt 0:00:01]} 5. Nbd2 {[%emt 0:00:01]} Be7 {[%emt 0:00:03]} 6. h3 {
[%emt 0:00:02]} O-O {[%emt 0:00:01]} 7. Bd3 {[%emt 0:00:08]} d6 {[%emt 0:00:03]
} 8. O-O {[%emt 0:00:01]} Nbd7 {[%emt 0:00:01]} 9. a4 {[%emt 0:00:03]} a6 {
[%emt 0:00:04]} 10. Bh2 {[%emt 0:00:01]} Re8 {[%emt 0:00:01]} 11. c3 {[%emt 0:
00:01]} Bf8 {[%emt 0:00:01]} 12. e4 {[%emt 0:00:35]} e5 {[%emt 0:00:02]} 13.
Re1 {[%emt 0:00:00]} g6 {[%emt 0:00:16]} 14. b4 {[%emt 0:00:01]} Bg7 {[%emt 0:
00:12]} 15. Qb3 {[%emt 0:00:02]} Qe7 {[%emt 0:00:02]} 16. a5 {[%emt 0:00:52]}
b5 {[%emt 0:00:11]} 17. d5 {[%emt 0:00:01]} c6 {[%emt 0:00:12]} 18. dxc6 {
[%emt 0:00:00]} Bxc6 {[%emt 0:00:01]} 19. c4 {[%emt 0:00:00]} Reb8 {[%emt 0:00:
19]} 20. Rac1 {[%emt 0:00:35]} h6 {[%emt 0:00:20]} 21. Bg3 {[%emt 0:00:28]} Qe6
{[%emt 0:00:07]} 22. Qd1 {[%emt 0:00:20]} Nh5 {[%emt 0:00:34]} 23. Bh2 {
[%emt 0:00:01]} Qe7 {[%emt 0:00:22]} 24. Nf1 {[%emt 0:00:10]} Kh7 {[%emt 0:00:
55]} 25. Ne3 {[%emt 0:00:04]} bxc4 {[%emt 0:00:04]} 26. Rxc4 {[%emt 0:00:09]}
Bb5 {[%emt 0:00:05]} 27. Nd5 {[%emt 0:00:07]} Qd8 {[%emt 0:00:01]} 28. Rc1 {
[%emt 0:00:08]} Bxd3 {[%emt 0:00:35]} 29. Qxd3 {[%emt 0:00:00]} Nhf6 {[%emt 0:
00:05]} 30. Red1 {[%emt 0:01:00]} Rc8 {[%emt 0:00:19]} 31. Bg3 {[%emt 0:00:24]}
Nh5 {[%emt 0:00:18]} 32. Rxc8 {[%emt 0:00:05]} Qxc8 {[%emt 0:00:07]} 33. Ne7 {
[%emt 0:00:13]} Qb7 {[%emt 0:00:18]} 34. Qxd6 {[%emt 0:00:01]} Nxg3 {[%emt 0:
00:01]} 35. Qxd7 {[%emt 0:00:09]} Qxd7 {[%emt 0:00:21]} 36. Rxd7 {[%emt 0:00:
00]} Nxe4 {[%emt 0:00:01]} 37. Nc6 {[%emt 0:00:02]} f6 {[%emt 0:00:14]} 38. Nd2
{[%emt 0:00:06]} Nxd2 {[%emt 0:00:06]} 39. Rxd2 {[%emt 0:00:00]} Bf8 {[%emt 0:
00:01]} 40. Rd7+ {[%emt 0:00:02]} Kg8 {[%emt 0:00:02]} 41. Rb7 {[%emt 0:00:07]}
e4 {[%emt 0:00:14]} 42. Kf1 {[%emt 0:00:02]} Bd6 {[%emt 0:00:08]} 43. Ke2 {
[%emt 0:00:01]} Rc8 {[%emt 0:00:02]} 44. Rb6 {[%emt 0:00:02]} Ra8 {[%emt 0:00:
00]} 45. g4 {[%emt 0:00:05]} Kf7 {[%emt 0:00:01]} 46. Ke3 {[%emt 0:00:04]} f5 {
[%emt 0:00:05]} 47. gxf5 {[%emt 0:00:00]} gxf5 {[%emt 0:00:01]} 48. Nd4 {
[%emt 0:00:02]} Bf8 {[%emt 0:00:07]} 49. Nxf5 {[%emt 0:00:02]} h5 {[%emt 0:00:
00]} 50. Kxe4 {[%emt 0:00:03]} Rd8 {[%emt 0:00:01]} 51. Nd4 {[%emt 0:00:10]}
Re8+ {[%emt 0:00:04]} 52. Kf3 {[%emt 0:00:01]} Re1 {[%emt 0:00:00]} 53. Nc6 {
[%emt 0:00:03]} Ke6 {[%emt 0:00:05]} 54. Rxa6 {[%emt 0:00:03]} Kd5 {[%emt 0:00:
00]} 55. Rb6 {[%emt 0:00:02]} Ra1 {[%emt 0:00:01]} 56. a6 {[%emt 0:00:02]} Bd6
{[%emt 0:00:04]} 57. a7 {[%emt 0:00:07]} Ra3+ {[%emt 0:00:03]} 58. Kg2 {
[%emt 0:00:01]} 1-0

[Event "Saint Louis Blitz 2020"]
[Site "Saint Louis"]
[Date "2020.09.18"]
[Round "9"]
[White "Nepomniachtchi, Ian"]
[Black "Nakamura, Hikaru"]
[Result "1-0"]
[ECO "A01"]
[WhiteElo "2784"]
[BlackElo "2736"]
[Annotator "RC"]
[PlyCount "61"]
[EventDate "2020.09.18"]
[EventType "blitz"]
[EventCountry "USA"]
[SourceTitle "playchess.com"]
[Source "ChessBase"]
[SourceQuality "1"]
[TimeControl "300+3"]

1. b3 {[%emt 0:00:03]} d5 {[%emt 0:00:03]} 2. Bb2 {[%emt 0:00:01]} c5 {[%emt 0:
00:03]} 3. Nf3 {[%emt 0:00:03]} f6 {[%emt 0:00:03]} 4. e3 {[%emt 0:00:31]} e5 {
[%emt 0:00:02]} 5. d4 {[%emt 0:00:01]} cxd4 {[%emt 0:00:03]} 6. exd4 {[%emt 0:
00:01]} e4 {[%emt 0:00:00]} 7. Nfd2 {[%emt 0:00:01]} f5 {[%emt 0:00:01]} 8. c4
{[%emt 0:00:01]} Nf6 {[%emt 0:00:01]} 9. Nc3 {[%emt 0:00:01]} Be6 {[%emt 0:00:
01]} 10. cxd5 {[%emt 0:00:24]} Nxd5 {[%emt 0:00:02]} 11. Bb5+ {[%emt 0:00:01]}
Nc6 {[%emt 0:00:03]} 12. O-O {[%emt 0:00:05]} Be7 {[%emt 0:00:17]} 13. Nc4 {
[%emt 0:00:39]} O-O {[%emt 0:00:16]} 14. Bxc6 {[%emt 0:00:02]} bxc6 {[%emt 0:
00:07]} 15. Ne5 {[%emt 0:00:02]} Nxc3 {[%emt 0:00:07]} 16. Bxc3 {[%emt 0:00:02]
} Bd5 {[%emt 0:00:02]} 17. f4 {[%emt 0:00:30]} exf3 {[%emt 0:00:06]} 18. Nxf3 {
[%emt 0:00:11]} Bd6 {[%emt 0:00:05]} 19. Qd2 {[%emt 0:00:03]} Rf6 {[%emt 0:00:
53]} 20. Ne5 {[%emt 0:00:09]} Bxe5 {[%emt 0:00:16]} 21. dxe5 {[%emt 0:00:02]}
Rg6 {[%emt 0:00:00]} 22. Rf2 {[%emt 0:00:02]} Qh4 {[%emt 0:00:06]} 23. Re1 {
[%emt 0:00:20]} Re8 {[%emt 0:00:20]} 24. e6 {[%emt 0:00:24]} Be4 {[%emt 0:01:
24]} 25. Qd7 {[%emt 0:00:40]} Rexe6 {[%emt 0:00:25]} 26. Qc8+ {[%emt 0:00:23]}
Kf7 {[%emt 0:00:02]} 27. Rd1 {[%emt 0:00:13]} Re8 {[%emt 0:01:24]} 28. Rd7+ {
[%emt 0:00:07]} Re7 {[%emt 0:00:01]} 29. Rd8 {[%emt 0:00:29]} Rge6 {[%emt 0:00:
07]} 30. Rg8 {[%emt 0:00:19]} Rg6 {[%emt 0:00:05]} 31. Rf8# {[%emt 0:00:06]}
1-0